bitfinex/quotes_SOLUSD_20240625
["timestamp","ask_amount","ask_price","bid_price","bid_amount"]
[1719321449341,7.274,137.48,137.44,25.0]
[1719321449856,10.3818198,137.49,137.44,43.1893]
[1719321450037,7.53270393,137.51,137.46,50.4615]
[1719321450353,7.2734,137.49,137.44,25.0]
[1719321450556,27.25532594,137.52,137.44,25.0]
[1719321450727,16.62225826,137.52,137.46,25.0]
[1719321450930,7.2723,137.51,137.46,32.2748]
[1719321451125,7.273,137.5,137.46,32.2747]
[1719321451331,7.2723,137.51,137.46,32.2747]
[1719321451535,7.2727,137.5,137.46,25.0]
[1719321452141,7.2722,137.51,137.48,25.0]
[1719321452726,7.2718,137.52,137.48,25.0]
[1719321452948,7.2718,137.52,137.48,36.18286]
[1719321453542,7.2718,137.52,137.48,25.0]
[1719321453748,7.2722,137.51,137.48,25.0]
[1719321454551,7.2718,137.52,137.48,25.0]
[1719321455653,7.2722,137.51,137.48,25.0]
[1719321457636,18.1781,137.53,137.46,25.0]
[1719321457961,7.2738,137.48,137.44,25.0]
[1719321458335,7.2738,137.48,137.46,25.0]
[1719321459546,7.2734,137.49,137.46,25.0]
[1719321459729,7.2733,137.49,137.46,25.0]
[1719321460135,7.2726,137.51,137.46,25.0]
[1719321460353,10.5518198,137.52,137.46,25.0]
[1719321460550,7.273,137.5,137.46,25.0]
[1719321461075,28.7312198,137.52,137.46,25.0]
[1719321461351,7.2741,137.48,137.46,25.0]
[1719321461548,7.2741,137.48,137.44,25.0]
[1719321461847,7.2745,137.47,137.42,65.6601]
[1719321462857,7.2749,137.46,137.42,65.6601]
[1719321463438,7.2744,137.47,137.44,25.0]
[1719321463736,7.2739,137.48,137.44,25.0]
[1719321463934,19.62764574,137.52,137.46,25.0]
[1719321464139,7.2734,137.49,137.44,25.4652]
[1719321464335,18.1806,137.51,137.43,25.0]
[1719321464652,7.2736,137.49,137.44,7.2755]
[1719321465157,7.2739,137.48,137.45,25.0]
[1719321465454,7.2747,137.47,137.43,43.1908]
[1719321465954,18.1806,137.51,137.43,25.0]
[1719321465955,7.2748,137.46,137.43,25.0]
[1719321466453,7.2745,137.47,137.43,25.0]
[1719321466757,18.5233,137.49,137.43,25.0]
[1719321467058,7.2765,137.43,137.41,25.0]
[1719321467761,7.2755,137.45,137.41,25.0]
[1719321468658,7.276,137.44,137.41,25.0]
[1719321471951,7.2765,137.43,137.41,25.0]
[1719321473444,7.276,137.44,137.41,25.0]
[1719321474139,7.2745,137.47,137.43,25.0]
[1719321475745,7.2745,137.47,137.43,32.2763]
[1719321476259,7.2745,137.47,137.45,25.0]
[1719321476462,7.2739,137.48,137.45,25.0]
[1719321476653,7.2734,137.49,137.45,25.0]
[1719321476971,7.2739,137.48,137.44,7.2757]
[1719321477169,7.2739,137.48,137.45,25.0]
[1719321477343,7.2744,137.47,137.45,25.0]
[1719321478440,7.2748,137.46,137.43,31.5231]
[1719321478773,7.2748,137.46,137.43,25.0]
[1719321480066,7.2744,137.47,137.43,32.2762]
[1719321480279,7.2739,137.48,137.45,25.0]
[1719321480664,7.2734,137.49,137.45,25.0]
[1719321481688,116.68477795,137.52,137.47,25.0]
[1719321481963,7.273,137.5,137.47,25.0]
[1719321482377,7.2732,137.49,137.47,25.0]
[1719321482859,7.2728,137.5,137.47,25.0]
[1719321483168,9.07582594,137.52,137.5,25.0]
[1719321483361,158.7386,137.6,137.52,25.0]
[1719321483670,7.2694,137.57,137.52,25.0]
[1719321484159,7.2694,137.57,137.54,25.0]
[1719321484959,7.2694,137.57,137.52,32.2714]
[1719321485376,10.3818198,137.62,137.56,25.0]
[1719321485748,7.2672,137.61,137.58,25.0]
[1719321485952,7.2665,137.62,137.58,25.0]
[1719321487273,7.2665,137.62,137.58,32.2684]
[1719321487576,7.2665,137.62,137.58,25.0]
[1719321487955,34.3237418,137.66,137.62,25.0]
[1719321488157,7.2648,137.65,137.6,32.2672]
[1719321488374,0.8467785,137.67,137.59,24.4907]
[1719321488552,7.2651,137.65,137.61,25.0]
[1719321488749,7.2654,137.64,137.61,25.0]
[1719321489672,0.8467785,137.67,137.59,31.3214]
[1719321489673,118.1613,137.66,137.59,31.3214]
[1719321489982,0.17,137.65,137.59,25.0]
[1719321490172,7.2668,137.62,137.59,25.0]
[1719321490478,7.2659,137.63,137.59,25.0]
[1719321491249,7.2654,137.64,137.59,32.2678]
[1719321491451,7.2654,137.64,137.61,25.0]
[1719321491874,7.2659,137.63,137.61,25.0]
[1719321492252,10.3818198,137.66,137.61,25.0]
[1719321492459,7.2646,137.66,137.61,32.2667]
[1719321492662,7.2648,137.65,137.61,25.0]
[1719321493052,7.2648,137.65,137.58,15.8158]
[1719321493053,0.8467785,137.67,137.63,25.0]
[1719321493374,0.8467785,137.67,137.66,25.0]
[1719321494085,15.3548,137.74,137.65,7.2643]
[1719321494086,7.2601,137.74,137.7,25.0]
[1719321494251,100.0,137.79,137.72,25.0]
[1719321494585,7.2574,137.8,137.76,25.0]
[1719321494956,7.2574,137.8,137.75,37.21766143]
[1719321495171,0.8467785,137.81,137.77,25.0]
[1719321495361,0.8467785,137.81,137.73,40.9482]
[1719321495682,7.2596,137.75,137.71,25.0]
[1719321495853,7.2602,137.74,137.71,25.0]
[1719321498656,7.2596,137.75,137.71,25.0]
[1719321498867,100.0,137.79,137.73,25.0]
[1719321499078,10.7218198,137.8,137.73,25.0]
[1719321499277,45.34,137.79,137.73,25.0]
[1719321499478,0.17,137.79,137.73,25.0]
[1719321499682,100.17,137.79,137.73,25.0]
[1719321499881,7.259,137.76,137.73,25.0]
[1719321500179,118.314,137.79,137.73,25.0]
[1719321500389,118.314,137.79,137.71,25.0]
[1719321501384,45.17,137.78,137.71,25.0]
[1719321501882,45.17,137.78,137.66,43.1605]
[1719321501883,100.0,137.75,137.66,43.1605]
[1719321502089,45.17,137.78,137.66,25.0]
[1719321502090,118.1518,137.73,137.66,25.0]
[1719321502399,7.2633,137.68,137.66,25.0]
[1719321502613,7.2628,137.69,137.66,25.0]
[1719321503704,7.2632,137.68,137.66,25.0]
[1719321503904,7.2627,137.69,137.66,25.0]
[1719321504108,7.2633,137.68,137.66,25.0]
[1719321504403,100.0,137.71,137.66,25.0]
[1719321504601,45.34,137.7,137.66,25.0]
[1719321504803,7.2633,137.68,137.66,25.0]
[1719321504980,100.0,137.73,137.66,25.0]
[1719321505180,7.2627,137.69,137.66,25.0]
[1719321505390,18.1509,137.74,137.68,25.0]
[1719321505576,0.17,137.73,137.68,25.0]
[1719321506191,7.2618,137.71,137.68,25.0]
[1719321506391,7.2621,137.7,137.68,25.0]
[1719321506689,18.1533,137.72,137.66,25.0]
[1719321506913,7.2641,137.67,137.64,25.0]
[1719321507377,7.2643,137.66,137.64,25.0]
[1719321507706,7.2648,137.65,137.61,47.7591]
[1719321508201,7.2653,137.64,137.61,47.7591]
[1719321508407,118.1582,137.68,137.61,47.7591]
[1719321508708,7.2663,137.62,137.61,25.0]
[1719321508882,7.2663,137.62,137.57,29.891]
[1719321509202,7.2663,137.62,137.56,25.0]
[1719321509203,100.0,137.62,137.56,25.0]
[1719321509409,7.268,137.59,137.56,25.0]
[1719321509699,7.2665,137.62,137.58,25.0]
[1719321509901,7.2659,137.63,137.58,25.0]
[1719321510077,7.2664,137.62,137.58,25.0]
[1719321510480,7.2664,137.62,137.58,32.2684]
[1719321510712,7.2664,137.62,137.58,25.0]
[1719321510915,7.267,137.61,137.58,25.0]
[1719321511095,7.267,137.61,137.57,7.269]
[1719321511608,7.267,137.61,137.58,25.0]
[1719321512205,7.2665,137.62,137.58,25.0]
[1719321512410,100.0,137.63,137.58,25.0]
[1719321512604,7.2674,137.6,137.58,25.0]
[1719321513109,7.267,137.61,137.58,25.0]
[1719321513317,100.0,137.63,137.56,25.0]
[1719321513478,7.2685,137.58,137.56,25.0]
[1719321513679,7.2681,137.59,137.56,25.0]
[1719321514392,7.2685,137.58,137.56,25.0]
[1719321514625,7.268,137.59,137.56,25.0]
[1719321514896,7.2685,137.58,137.56,25.0]
[1719321515309,7.2681,137.59,137.56,25.0]
[1719321515513,7.2675,137.6,137.56,25.0]
[1719321516678,7.268,137.59,137.56,25.0]
[1719321517085,7.2685,137.58,137.56,25.0]
[1719321517307,7.269,137.57,137.56,25.0]
[1719321517515,7.73769795,137.61,137.56,25.0]
[1719321517807,7.2684,137.59,137.56,25.0]
[1719321518013,0.17,137.6,137.56,25.0]
[1719321518205,7.268,137.59,137.56,25.0]
[1719321519484,7.56769795,137.61,137.58,25.0]
[1719321519685,7.2672,137.61,137.58,25.0]
[1719321520187,7.2679,137.59,137.58,25.0]
[1719321523721,7.269,137.57,137.56,25.0]
[1719321524898,7.2687,137.58,137.56,25.0]
[1719321525403,7.2687,137.58,137.54,41.5988]
[1719321525602,7.269,137.57,137.54,41.5988]
[1719321525793,44.8584,137.61,137.56,25.0]
[1719321525794,7.2682,137.59,137.56,25.0]
[1719321526209,26.69,137.61,137.56,25.0]
[1719321526210,7.2675,137.6,137.56,25.0]
[1719321526716,26.69,137.61,137.58,25.0]
[1719321526717,7.267,137.61,137.58,25.0]
[1719321526892,7.267,137.61,137.56,32.2693]
[1719321527287,7.267,137.61,137.59,25.0]
[1719321527805,7.2674,137.6,137.59,25.0]
[1719321528212,7.2674,137.6,137.56,7.2695]
[1719321528213,7.56930824,137.66,137.61,25.0]
[1719321528518,7.2663,137.62,137.61,25.0]
[1719321528890,7.2659,137.63,137.61,25.0]
[1719321529103,7.2654,137.64,137.61,25.0]
[1719321529289,7.2654,137.64,137.63,25.0]
[1719321529490,17.91511694,137.67,137.61,25.0]
[1719321529491,7.2659,137.63,137.61,25.0]
[1719321529790,7.2663,137.62,137.61,25.0]
[1719321534719,126.69,137.65,137.61,25.0]
[1719321536324,7.2663,137.62,137.61,25.0]
[1719321537629,7.266,137.63,137.61,25.0]
[1719321540007,7.51824972,137.64,137.63,25.0]
[1719321540210,18.1592,137.68,137.63,25.0]
[1719321540519,18.1592,137.68,137.61,25.0]
[1719321540520,45.17,137.67,137.61,25.0]
[1719321540730,7.2653,137.64,137.61,27.1987656]
[1719321540934,7.2653,137.64,137.63,25.0]
[1719321541314,18.1592,137.68,137.64,25.0]
[1719321541613,7.2648,137.65,137.62,25.0]
[1719321541840,7.2655,137.64,137.62,25.0]
[1719321542330,25.67198697,137.69,137.62,25.0]
[1719321542710,7.2645,137.66,137.62,25.0]
[1719321543318,18.1595,137.67,137.62,25.0]
[1719321543642,7.51518697,137.69,137.64,25.0]
[1719321543820,7.51518697,137.69,137.6,15.6691]
[1719321543821,7.2637,137.67,137.66,25.0]
[1719321544146,7.2637,137.67,137.6,15.6691]
[1719321544147,7.2659,137.63,137.6,40.6691]
[1719321544316,126.69,137.67,137.6,40.6691]
[1719321544509,18.161,137.66,137.6,40.6691]
[1719321544711,7.266,137.63,137.6,40.6691]
[1719321545237,7.2664,137.62,137.6,40.6691]
[1719321546023,7.266,137.63,137.6,40.6691]
[1719321548232,26.69,137.67,137.62,25.0]
[1719321548539,7.2644,137.66,137.62,25.0]
[1719321549823,7.2648,137.65,137.64,25.0]
[1719321550146,118.1596,137.67,137.6,40.6691]
[1719321550316,7.2662,137.63,137.6,40.6691]
[1719321550510,7.2664,137.62,137.6,40.6691]
[1719321550740,144.8496,137.67,137.6,40.6691]
[1719321550954,0.17,137.66,137.6,40.6691]
[1719321551115,7.266,137.63,137.6,40.6691]
[1719321551729,7.2667,137.62,137.6,40.6691]
[1719321554318,7.266,137.63,137.6,40.6691]
[1719321556951,7.266,137.63,137.62,25.0]
[1719321558251,7.2654,137.64,137.62,25.0]
[1719321558622,7.2658,137.63,137.62,25.0]
[1719321562642,52.88103834,137.66,137.62,25.0]
[1719321562847,52.88103834,137.66,137.6,40.6691]
[1719321563338,7.2661,137.63,137.6,40.6691]
[1719321564537,7.2654,137.64,137.62,25.0]
[1719321565221,7.2658,137.63,137.62,25.0]
[1719321566545,52.88103834,137.66,137.62,25.0]
[1719321566734,7.71103834,137.66,137.62,25.0]
[1719321566937,7.71103834,137.66,137.6,40.6691]
[1719321567143,7.2662,137.63,137.6,40.6691]
[1719321567325,7.71103834,137.66,137.6,40.6691]
[1719321567930,7.2666,137.62,137.6,40.6691]
[1719321568441,7.2659,137.63,137.6,40.6691]
[1719321569252,7.2655,137.64,137.62,25.0]
[1719321569550,7.2649,137.65,137.62,25.0]
[1719321569725,7.2644,137.66,137.62,32.2663]
[1719321569932,7.2638,137.67,137.62,25.0]
[1719321570132,7.2638,137.67,137.64,25.0]
[1719321570458,7.2638,137.67,137.66,25.0]
[1719321570628,16.1538,137.67,137.66,25.0]
[1719321571435,7.2644,137.66,137.64,25.0]
[1719321571669,153.7176,137.69,137.62,25.0]
[1719321571873,8.89,137.65,137.62,25.0]
[1719321572037,7.2655,137.64,137.62,25.0]
[1719321572234,16.1555,137.64,137.62,25.0]
[1719321572733,7.2659,137.63,137.6,40.6691]
[1719321572928,7.2655,137.64,137.62,25.0]
[1719321573131,118.1602,137.67,137.6,40.6691]
[1719321573132,18.1624,137.65,137.6,40.6691]
[1719321573342,118.1624,137.65,137.6,25.0]
[1719321573549,7.2669,137.61,137.6,25.0]
[1719321574028,0.17,137.64,137.6,25.0]
[1719321574338,7.2669,137.61,137.6,25.0]
[1719321575273,45.34,137.64,137.6,25.0]
[1719321575274,7.2664,137.62,137.6,25.0]
[1719321577066,7.2669,137.61,137.6,25.0]
[1719321578762,7.2665,137.62,137.6,25.0]
[1719321579870,7.2659,137.63,137.6,25.0]
[1719321580246,26.67,137.66,137.6,25.0]
[1719321580455,26.67,137.66,137.63,25.0]
[1719321580456,7.2644,137.66,137.63,25.0]
[1719321580963,7.2662,137.63,137.61,25.0]
[1719321581258,7.2655,137.64,137.61,25.0]
[1719321583052,7.2649,137.65,137.63,25.0]
[1719321583578,7.2649,137.65,137.61,25.0]
[1719321583762,7.2658,137.63,137.61,25.0]
[1719321584676,7.2663,137.62,137.61,25.0]
[1719321585243,7.266,137.63,137.61,25.0]
[1719321586280,7.2655,137.64,137.61,25.0]
[1719321586945,7.266,137.63,137.61,25.0]
[1719321587469,7.2659,137.63,137.61,25.0]
[1719321587665,7.2663,137.62,137.61,25.0]
[1719321587874,18.1622,137.65,137.61,25.0]
[1719321588059,7.2659,137.63,137.61,25.0]
[1719321588777,7.2655,137.64,137.61,25.0]
[1719321589145,7.2659,137.63,137.61,25.0]
[1719321589344,7.2655,137.64,137.61,25.0]
[1719321589977,7.2659,137.63,137.61,25.0]
[1719321591045,7.2655,137.64,137.61,25.0]
[1719321591246,7.2659,137.63,137.61,25.0]
[1719321591944,7.2655,137.64,137.61,25.0]
[1719321592244,7.2659,137.63,137.61,25.0]
[1719321592645,16.1559,137.63,137.61,25.0]
[1719321593258,7.2659,137.63,137.61,25.0]
[1719321593451,16.1559,137.63,137.61,25.0]
[1719321593652,8.89,137.63,137.61,25.0]
[1719321593855,16.1561,137.63,137.61,25.0]
[1719321594371,7.2661,137.63,137.61,25.0]
[1719321594553,16.1561,137.63,137.61,25.0]
[1719321595256,8.89,137.63,137.62,0.86507282]
[1719321595458,7.2652,137.65,137.63,25.0]
[1719321595669,8.89,137.64,137.63,25.0]
[1719321595970,10.3818198,137.66,137.63,25.0]
[1719321596222,8.89,137.66,137.64,1.73154593]
[1719321596479,8.89,137.66,137.65,25.0]
[1719321596988,7.2642,137.66,137.65,25.0]
[1719321597147,8.57027038,137.7,137.65,25.0]
[1719321597348,16.1542,137.66,137.65,25.0]
[1719321598050,7.2658,137.63,137.62,16.4143]
[1719321598253,19.2718198,137.69,137.62,16.4143]
[1719321598254,7.2655,137.64,137.62,16.4143]
[1719321598477,7.2655,137.64,137.63,25.0]
[1719321598770,16.1555,137.64,137.63,25.0]
[1719321599346,7.2658,137.63,137.61,25.0]
[1719321599550,100.0,137.68,137.59,25.0]
[1719321599551,16.1563,137.62,137.59,25.0]
[1719321599769,8.89,137.61,137.59,25.0]
[1719321600669,16.1574,137.6,137.59,25.0]
[1719321601995,8.89,137.6,137.56,25.0]
[1719321602281,8.89,137.6,137.54,23.2272]
[1719321602282,7.2676,137.6,137.55,25.4445]
[1719321602489,7.2676,137.6,137.55,50.4445]
[1719321602490,8.89,137.59,137.55,50.4445]
[1719321602660,7.268,137.59,137.55,43.1748]
[1719321602859,10.3818198,137.62,137.58,25.0]
[1719321603588,10.3818198,137.62,137.57,25.0]
[1719321603783,7.2674,137.6,137.57,25.0]
[1719321603986,7.268,137.59,137.57,25.0]
[1719321604167,7.2675,137.6,137.57,25.0]
[1719321604976,10.3818198,137.62,137.58,25.0]
[1719321605182,7.2673,137.61,137.58,25.0]
[1719321605489,7.2674,137.6,137.58,25.0]
[1719321605904,10.3818198,137.62,137.58,25.0]
[1719321606192,7.2674,137.6,137.58,25.0]
[1719321606373,7.2679,137.59,137.58,25.0]
[1719321606973,7.2675,137.6,137.58,25.0]
[1719321607488,7.2679,137.59,137.58,25.0]
[1719321607885,7.2679,137.59,137.56,25.0]
[1719321608095,7.2685,137.58,137.56,25.0]
[1719321609293,7.2681,137.59,137.56,25.0]
[1719321610173,7.2686,137.58,137.56,25.0]
[1719321612912,7.27,137.55,137.54,25.0]
[1719321613278,7.2697,137.56,137.54,25.0]
[1719321613675,7.2692,137.57,137.54,25.0]
[1719321613877,7.2695,137.56,137.54,25.0]
[1719321615900,49.40477038,137.6,137.56,25.0]
[1719321615901,7.2675,137.6,137.56,25.0]
[1719321616216,7.2675,137.6,137.51,38.3599]
[1719321616217,7.269,137.57,137.54,25.0]
[1719321617282,7.2686,137.58,137.54,25.0]
[1719321617482,7.2686,137.58,137.54,32.2705]
[1719321618221,17.6482198,137.62,137.59,25.0]
[1719321619084,7.2669,137.61,137.59,25.0]
[1719321619507,7.2685,137.58,137.54,25.0]
[1719321619820,7.2685,137.58,137.56,25.0]
[1719321620190,10.3818198,137.61,137.57,5.6345662]
[1719321620506,10.3818198,137.61,137.56,25.0]
[1719321620889,7.2681,137.59,137.56,25.0]
[1719321622611,7.2685,137.58,137.56,25.0]
[1719321623186,7.2681,137.59,137.56,25.0]
[1719321623802,44.3389198,137.61,137.58,25.0]
[1719321623995,17.6489198,137.61,137.58,28.28010783]
[1719321624307,10.3818198,137.61,137.58,3.28010783]
[1719321624511,10.3818198,137.61,137.56,40.4107]
[1719321624693,8.9,137.58,137.56,40.4107]
[1719321625818,8.9,137.57,137.56,40.4107]
[1719321625989,7.268,137.59,137.56,40.4107]
[1719321626320,7.2676,137.6,137.58,25.0]
[1719321626497,8.9,137.59,137.58,25.0]
[1719321626698,8.9,137.59,137.56,40.4107]
[1719321626998,8.9,137.58,137.56,40.4107]
[1719321628203,16.1685,137.58,137.56,40.4107]
[1719321628415,8.9,137.57,137.56,40.4107]
[1719321628792,8.9,137.57,137.54,25.0]
[1719321628987,18.169,137.6,137.54,25.0]
[1719321628988,7.2699,137.56,137.54,25.0]
[1719321629192,8.9,137.55,137.54,25.0]
[1719321629986,7.2711,137.53,137.52,25.0]
[1719321630187,16.1711,137.53,137.5,25.0]
[1719321630391,7.2711,137.53,137.5,25.0]
[1719321631294,7.2708,137.54,137.5,25.0]
[1719321632292,35.6,137.55,137.5,25.0]
[1719321632500,7.2707,137.54,137.5,25.0]
[1719321632904,7.2712,137.53,137.5,25.0]
[1719321633410,8.9,137.51,137.5,25.0]
[1719321634613,8.9,137.51,137.5,32.2727]
[1719321634814,50.41250354,137.55,137.5,36.16093638]
[1719321635116,8.9,137.52,137.5,32.2725]
[1719321636011,8.9,137.52,137.5,25.0]
[1719321636215,8.9,137.51,137.5,25.0]
[1719321636395,8.9,137.51,137.48,40.8579]
[1719321636596,8.9,137.5,137.48,40.8579]
[1719321636795,35.6,137.55,137.48,40.8579]
[1719321636796,8.9,137.49,137.48,40.8579]
[1719321637616,8.9,137.49,137.48,25.0]
[1719321642007,8.9,137.49,137.47,7.2743]
[1719321642206,8.9,137.49,137.48,25.0]
[1719321643938,16.1732,137.49,137.48,25.0]
[1719321644511,8.9,137.49,137.48,25.0]
[1719321646428,7.2724,137.51,137.48,25.0]
[1719321646739,8.9,137.49,137.48,25.0]
[1719321647414,8.9,137.5,137.48,25.0]
[1719321647914,7.2724,137.51,137.48,25.0]
[1719321648109,17.6536198,137.52,137.48,25.0]
[1719321648427,8.9,137.51,137.48,25.0]
[1719321648932,8.9,137.51,137.49,1.45388461]
[1719321649246,16.1727,137.5,137.48,25.0]
[1719321649529,8.9,137.49,137.48,25.0]
[1719321650221,16.1732,137.49,137.48,25.0]
[1719321650717,8.9,137.49,137.48,25.0]
[1719321651537,16.1732,137.49,137.48,25.0]
[1719321651834,7.2739,137.48,137.46,25.0]
[1719321652030,8.9,137.47,137.46,25.0]
[1719321652532,8.9,137.48,137.46,25.0]
[1719321653537,8.9,137.47,137.46,25.0]
[1719321653737,8.9,137.48,137.46,25.0]
[1719321655843,8.9,137.47,137.46,25.0]
[1719321656150,8.9,137.48,137.46,25.0]
[1719321657749,8.9,137.47,137.46,25.0]
[1719321658146,16.1738,137.48,137.46,25.0]
[1719321658334,8.9,137.47,137.46,25.0]
[1719321659756,7.2734,137.49,137.46,25.0]
[1719321660050,8.9,137.47,137.46,25.0]
[1719321660454,16.1743,137.47,137.44,40.8579]
[1719321660636,8.9,137.45,137.44,25.0]
[1719321661957,8.9,137.45,137.41,25.0]
[1719321662158,8.9,137.42,137.41,25.0]
[1719321662531,8.9,137.42,137.39,25.0]
[1719321662746,8.9,137.41,137.39,25.0]
[1719321663438,8.9,137.4,137.39,25.0]
[1719321666463,16.178,137.4,137.39,25.0]
[1719321666634,7.279,137.38,137.34,53.6179]
[1719321666835,8.9,137.37,137.36,25.0]
[1719321668464,8.9,137.37,137.34,25.0]
[1719321668635,8.9,137.35,137.34,25.0]
[1719321668940,7.2796,137.37,137.34,25.0]
[1719321669153,8.9,137.35,137.34,25.0]
[1719321669756,8.9,137.35,137.33,0.8467785]
[1719321669934,8.9,137.34,137.33,0.8467785]
[1719321670643,10.3818198,137.37,137.33,0.8467785]
[1719321670846,8.9,137.34,137.33,0.8467785]
[1719321671054,8.9,137.35,137.33,0.8467785]
[1719321671258,8.57027038,137.39,137.34,25.0]
[1719321671554,8.9,137.37,137.36,25.0]
[1719321672363,7.279,137.39,137.36,25.0]
[1719321672545,17.86392586,137.41,137.37,7.2795]
[1719321672747,8.9,137.39,137.36,25.0]
[1719321673338,8.9,137.39,137.38,25.0]
[1719321673632,10.3818198,137.41,137.38,25.0]
[1719321673867,17.6593198,137.41,137.38,25.0]
[1719321674035,8.9,137.39,137.36,25.0]
[1719321674361,8.9,137.38,137.36,25.0]
[1719321674761,7.278,137.4,137.36,25.0]
[1719321675767,17.6593198,137.41,137.38,25.0]
[1719321676662,7.278,137.4,137.38,25.0]
[1719321676863,10.3818198,137.41,137.38,25.0]
[1719321677463,7.278,137.4,137.38,25.0]
[1719321677765,17.6594198,137.41,137.38,25.0]
[1719321678375,10.3818198,137.41,137.38,25.0]
[1719321678750,10.3818198,137.41,137.39,1.10022024]
[1719321679154,10.3818198,137.41,137.4,25.0]
[1719321679558,17.6592198,137.41,137.38,25.0]
[1719321679763,7.278,137.4,137.36,25.0]
[1719321680266,7.278,137.4,137.38,25.0]
[1719321681255,17.6594198,137.41,137.38,25.0]
[1719321682653,7.2796,137.37,137.36,25.0]
[1719321682861,7.2792,137.38,137.36,25.0]
[1719321683757,7.2786,137.39,137.36,25.0]
[1719321684365,17.6597198,137.41,137.38,25.0]
[1719321686068,7.278,137.4,137.38,25.0]
[1719321686569,10.3818198,137.41,137.38,25.0]
[1719321686753,7.2768,137.43,137.38,47.8668]
[1719321686957,7.48407182,137.44,137.38,47.8668]
[1719321686958,7.2761,137.44,137.39,8.73256705]
[1719321687170,7.2761,137.44,137.4,26.45406121]
[1719321687381,7.2761,137.44,137.42,25.0]
[1719321687676,17.6568198,137.46,137.43,1.45374379]
[1719321688173,17.6568198,137.46,137.44,25.0]
[1719321688365,17.6568198,137.46,137.42,26.34490416]
[1719321688668,17.6568198,137.46,137.43,1.34589681]
[1719321688859,7.2754,137.45,137.4,25.4725]
[1719321689059,7.2754,137.45,137.42,25.0]
[1719321689272,10.3818198,137.46,137.42,18.192]
[1719321689456,7.48444757,137.49,137.45,25.0]
[1719321689664,7.2746,137.47,137.45,25.0]
[1719321689968,7.2746,137.47,137.43,25.0]
[1719321690273,7.2746,137.47,137.45,25.0]
[1719321690463,7.2748,137.46,137.45,25.0]
[1719321690663,7.2748,137.46,137.42,25.4689]
[1719321690664,7.2748,137.46,137.43,25.0]
[1719321690875,7.2753,137.45,137.43,25.0]
[1719321691167,118.182,137.5,137.43,25.0]
[1719321691361,153.52227038,137.5,137.43,25.0]
[1719321691555,7.2759,137.44,137.43,25.0]
[1719321691756,7.2755,137.45,137.43,25.0]
[1719321693449,7.275,137.46,137.45,25.0]
[1719321694360,7.2743,137.47,137.45,25.0]
[1719321694656,8.91,137.46,137.45,25.0]
[1719321694860,8.91,137.46,137.43,36.69653576]